Cogmind - Beta 16.1 @@@ ROGUE MODE // 2026.02.11 @ 10:51:17 Player: Wulphy Result: Heading to fleet! Performance ------------- Evolutions (9) 4500 Regions Visited (21) 4200 Robots Destroyed (101) 505 Value Destroyed (5166) 5166 Prototype IDs (80) 1600 Alien Tech Used (12) 2400 Bonus (32271) 32271 TOTAL SCORE: 50642 Bonus ------- Triggered Max Security 2000 High Alert Combat Kills 1855 Follower Combat Kills 2498 Network Hubs Disabled 200 Registered with UFD 300 Met Optimus in HQ 500 Met Zhirov 300 Built Enhanced Grunts 300 Met R17 at Cetus 500 Found Hidden Lab 3000 Used Core Reset Matrix 3000 Met R17 at Research 2000 Integrated Exoskeleton 5000 Destroyed MAIN.C Guards 500 Met MAIN.C 5000 Destroyed MAIN.C Shell 5000 Win 3000 Friendly Fire -2682 Cogmind --------- Core Integrity 157/1850 Matter 299/300 Energy 162/290 System Corruption 3% Temperature Cool (0) +ITN Movement Walking (30) +NEM 1 Location To Fleet Rendezvous Parts ------- > --- POWER (1) -------- Light Quantum Reactor > --- PROPULSION (3) --- Sigix Exoskeleton > --- UTILITY (4) ------ Advanced Force Field Microwarp Drive > --- WEAPON (3) ------- Sigix Sheargun Sigix Sheargun Sigix Sheargun (fused) > --- INVENTORY (5) ---- Medium Storage Unit Dimensional Node Initializer Transdimensional Reconstructor Subatomic Replicator Peak State ------------ > --- POWER ------------ Light Quantum Reactor > --- PROPULSION ------- Sigix Exoskeleton > --- UTILITY ---------- Advanced Force Field Microwarp Drive > --- WEAPON ----------- Sigix Sheargun Sigix Sheargun Sigix Sheargun > --- INVENTORY -------- Medium Storage Unit Dimensional Node Initializer Transdimensional Reconstructor Subatomic Replicator [Rating: 258] Favorites ----------- Power Ion Engine Engine Ion Engine Power Core Improved Fusion Compressor Reactor Micro Antimatter Reactor Propulsion Impulse Thruster Treads Light Treads Leg Sigix Exoskeleton Wheel Compact Wheel Hover Unit Linear Gravjet Flight Unit Impulse Thruster Utility Advanced Hacking Suite Device Active Sensor Suite Storage Medium Storage Unit Processor Advanced Target Analyzer Hackware Advanced Hacking Suite Protection Medium Regenerative Plating Artifact Microwarp Drive Weapon Flak Gun Energy Gun Sigix Sheargun Energy Cannon Heavy Proton Cannon Ballistic Gun Flak Gun Ballistic Cannon Light Antimatter Cannon Launcher Neutron Missile Launcher Special Weapon Voltaic Drivehammer Impact Weapon Thunder Hammer Slashing Weapon Centrium Greatsword Piercing Weapon Lance Build | -11 -10 -10 -7 -5 -5 -5 -5 -5 -4 -4 -4 -4 -3 -3 -3 -3 -2 -2 -2 -1 -1 ------- Run | Yrd Mat Sub Scr Fac Ext Cet Arc Hub Fac Upp Upp Zhi Pro Res Arm Lab Res Qua Sec Acc Com Slots Evolved 18 | . . . . 10 . . . . 2 . . . . 2 . . 2 . . 2 . Power 1 | . . . . 1 . . . . . . . . . . . . . . . . . Propulsion 6 | . . . . 4 . . . . 1 . . . . 1 . . . . . . . Utility 10 | . . . . 5 . . . . 1 . . . . 1 . . 2 . . 1 . Weapon 1 | . . . . . . . . . . . . . . . . . . . . 1 . Parts Attached 145 | 7 . 3 13 18 23 8 1 6 10 5 . 1 . 21 1 4 5 6 1 1 11 Power 19 | 1 . . 2 2 5 1 . . 1 2 . . . 2 . . . 3 . . . Engine 9 | 1 . . 2 . 3 . . . . 2 . . . . . . . 1 . . . Core 5 | . . . . 2 2 . . . . . . . . 1 . . . . . . . Reactor 5 | . . . . . . 1 . . 1 . . . . 1 . . . 2 . . . Propulsion 20 | 2 . 2 3 5 1 . . . 1 . . . . 6 . . . . . . . Treads 4 | . . 2 2 . . . . . . . . . . . . . . . . . . Leg 2 | 2 . . . . . . . . . . . . . . . . . . . . . Wheel 3 | . . . 1 1 1 . . . . . . . . . . . . . . . . Hover 1 | . . . . 1 . . . . . . . . . . . . . . . . . Flight 10 | . . . . 3 . . . . 1 . . . . 6 . . . . . . . Utility 72 | 2 . . 5 7 11 4 1 3 4 3 . 1 . 11 1 2 3 2 1 . 11 Device 38 | 1 . . 1 6 5 . 1 2 4 1 . . . 7 1 . 2 . . . 7 Storage 6 | 1 . . 2 1 1 . . . . . . . . . . . . 1 . . . Processor 9 | . . . . . 1 . . . . 1 . . . 2 . . . 1 . . 4 Hackware 5 | . . . . . . . . 1 . . . . . 2 . 1 1 . . . . Protection 13 | . . . 2 . 4 4 . . . 1 . 1 . . . 1 . . . . . Artifact 1 | . . . . . . . . . . . . . . . . . . . 1 . . Weapon 34 | 2 . 1 3 4 6 3 . 3 4 . . . . 2 . 2 2 1 . 1 . Energy Gun 4 | 1 . . . . 1 1 . . . . . . . . . . . . . 1 . Energy Cannon 11 | . . 1 . 2 . . . 3 1 . . . . . . 2 1 1 . . . Ballistic Gun 12 | 1 . . 3 2 3 2 . . 1 . . . . . . . . . . . . Ballistic Cannon 1 | . . . . . . . . . . . . . . . . . 1 . . . . Launcher 1 | . . . . . . . . . 1 . . . . . . . . . . . . Special Weapon 2 | . . . . . 2 . . . . . . . . . . . . . . . . Impact Weapon 1 | . . . . . . . . . 1 . . . . . . . . . . . . Slashing Weapon 1 | . . . . . . . . . . . . . . 1 . . . . . . . Piercing Weapon 1 | . . . . . . . . . . . . . . 1 . . . . . . . Special Melee Weapon . | . . . . . . . . . . . . . . . . . . . . . . Unidentified Prototypes 22 | . . . . . 1 4 . 1 6 1 . 2 . . . 5 1 1 . . . Parts Lost 15 | . . . 1 11 1 . . . 1 . . . . . . . . . 1 . . Power 3 | . . . . 2 1 . . . . . . . . . . . . . . . . Propulsion 5 | . . . . 4 . . . . . . . . . . . . . . 1 . . Utility 4 | . . . 1 3 . . . . . . . . . . . . . . . . . Weapon 3 | . . . . 2 . . . . 1 . . . . . . . . . . . . Highest Loss Streak 11 | . . . 1 11 1 . . . 1 . . . . . . . . . 1 . . To Critical Strikes . | . . . . . . . . . . . . . . . . . . . . . . Average Backups 9 | 4 6 5 9 12 7 17 18 17 17 8 7 7 8 8 9 9 9 9 8 3 4 Power . | . 1 . . 1 . . . 2 2 . . . . . . . . . . . . Propulsion 1 | 2 4 3 2 2 . 1 1 1 1 . . . . . . 1 . . . . . Utility 5 | . . . 5 4 4 11 11 10 9 4 4 3 3 4 6 6 5 5 3 . 1 Weapon 2 | . 1 1 1 4 2 5 4 4 5 2 2 3 3 2 2 2 . 2 1 . . Tool/Special . | . . . . . . . . . . . . . . . . . . . . . . Unused Backups 57 | . . 6 12 10 . 3 1 2 3 2 . . . 4 6 . 1 2 2 . 3 Power 3 | . . 1 1 1 . . . . . . . . . . . . . . . . . Propulsion 7 | . . 2 . . . . . . . . . . . 3 . . . . 2 . . Utility 25 | . . 1 6 5 . 1 . 2 3 1 . . . . 3 . 1 2 . . . Weapon 18 | . . 2 5 4 . 2 1 . . 1 . . . . 3 . . . . . . Tool/Special 4 | . . . . . . . . . . . . . . 1 . . . . . . 3 Average Slot Usage (%) 75 | . 100 100 90 76 58 64 65 64 67 61 63 63 63 69 75 74 75 75 60 62 62 Engine 6 | . 14 14 13 4 4 5 5 5 . 8 9 9 9 1 . . . . . . . Core 1 | . . . . 3 4 1 . . . . . . . 3 4 4 3 . . . . Reactor 2 | . . . . . . 3 5 5 8 . . . . 3 4 4 3 5 8 9 9 Treads 5 | . . 24 14 4 . . . . . . . . . . . . . . . . . Leg 1 | . 28 3 . . . . . . . . . . . . . . . . 2 9 9 Wheel 4 | . . . 12 7 2 5 5 5 4 . . . . . . . . . . . . Flight 6 | . . . . 3 7 5 5 5 8 12 13 13 13 14 20 20 19 19 12 . . Device 14 | . 14 14 5 23 18 20 20 19 21 21 22 19 18 15 17 17 19 23 9 . 4 Storage 6 | . 14 14 11 5 5 5 5 5 4 4 4 4 4 4 4 4 3 3 2 9 1 Hackware 3 | . . . . . . . . 3 4 4 4 4 4 7 8 10 14 11 8 . . Protection 5 | . . . 7 4 7 9 10 7 4 4 4 6 9 8 8 7 7 3 2 . . Energy Gun 2 | . 14 6 . . . . . . . . . . . . . . . . 5 26 27 Energy Cannon 1 | . . 7 2 4 . . . 3 3 . . . . . . . . . . . . Ballistic Gun 8 | . 14 14 21 6 6 9 10 6 4 . . . . . . . . . . . . Peak Build Rating 258 | 7 7 12 32 95 131 150 149 151 170 170 149 142 148 183 182 185 197 200 240 251 258 Average Rating 113 | 5 7 9 20 72 110 144 148 147 164 140 142 141 141 169 176 179 194 193 209 250 255 On Entrance 130 | . 7 7 12 30 83 131 148 148 149 170 142 142 141 141 179 177 184 193 199 240 251 Avg Prop Armor Cover (%) 13 | . . . 10 9 17 18 18 18 20 . . . . . . 1 . . . . . Naked Turns 32 | . . . 32 . . . . . . . . . . . . . . . . . . Heaviest Build 121 | 14 14 21 65 92 99 111 111 119 121 112 44 44 44 62 51 49 58 54 60 52 57 Greatest Support 60 | 20 20 40 48 44 37 20 20 20 20 44 44 44 44 56 56 56 56 56 60 60 60 Greatest Overweight (x) 17 | . . . 4 5 4 5 5 5 6 5 . . . 1 2 . 17 . 1 . . Average Overweight (x) . | . . . 1 2 1 4 5 4 5 . . . . . . . . . . . . Largest Inventory Capacity 20 | 8 8 8 20 20 20 20 20 20 20 20 10 10 10 10 10 10 10 10 10 10 10 Average Capacity 13 | 7 8 8 16 19 10 20 20 20 20 10 10 10 10 10 10 10 10 10 8 10 5 Most Carried 20 | 6 6 8 20 20 17 20 20 20 20 20 10 10 9 10 10 10 10 10 10 4 5 Average Carried 12 | 4 6 7 14 19 10 19 19 19 19 10 9 9 8 9 9 9 9 9 8 3 4 Final Capacity 20 | 8 8 8 20 10 20 20 20 20 20 10 10 10 10 10 10 10 10 10 5 10 5 Final Carried 20 | 6 6 8 20 10 17 20 20 20 20 10 10 9 9 10 9 10 10 10 5 3 4 Scrap Suit Usage (%) 5 | . . . . . 42 60 . . . . . . . . . . . . . . . Parts Cannibalized 2 | . . . . . 1 1 . . . . . . . . . . . . . . . Class Distribution -------------------- 36% | Mutant 14% | Scavenger-Skirmisher 12% | Hacker-Ninja 8% | Alien-Sigix 7% | Scavenger-Scout 3% | Infiltrator-Mutant 3% | Wizard-Ninja 3% | Commander-Skirmisher Dominant Class ---------------- Mutant | -10/Materials Mutant | -10/Subcaves Mutant | -7/Scraptown Infiltrator-Mutant | -5/Factory Scavenger-Skirmisher | -5/Extension Commander-Skirmisher | -5/Cetus Commander-Skirmisher | -5/Archives Scavenger-Skirmisher | -5/Hub_04(d) Scavenger-Skirmisher | -4/Factory Scavenger-Scout | -4/Upper Caves Scavenger-Scout | -4/Upper Caves Scavenger-Scout | -4/Zhirov Scavenger-Scout | -3/Proximity Caves Hacker-Ninja | -3/Research Hacker-Ninja | -3/Armory Hacker-Ninja | -3/Lab Wizard-Ninja | -2/Research Hacker-Ninja | -2/Quarantine Hacker-Ninja | -2/Section 7 Alien-Sigix | -1/Access Alien-Sigix | -1/Command Resources | -11 -10 -10 -7 -5 -5 -5 -5 -5 -4 -4 -4 -4 -3 -3 -3 -3 -2 -2 -2 -1 -1 ----------- Run | Yrd Mat Sub Scr Fac Ext Cet Arc Hub Fac Upp Upp Zhi Pro Res Arm Lab Res Qua Sec Acc Com Matter Collected 4722 | 279 . 84 337 160 598 167 281 126 408 81 . . 59 1067 . . 304 246 373 20 132 Remotely . | . . . . . . . . . . . . . . . . . . . . . . Salvage Created 6216 | 117 . 269 191 357 229 72 157 419 1367 . . . 16 470 . . 304 246 367 558 1077 Parts 271 | 5 . 23 7 14 12 3 10 21 53 . . . . 15 . . 17 11 25 32 23 Haulers Intercepted 4 | . . . . . . . . . 4 . . . . . . . . . . . . Recyclers Shooed 2 | . . . . . 1 . . . . . . . . . . . . . . 1 . Parts Field Recycled 13 | . . . . . . . . . . 4 . . . 9 . . . . . . . Retrieved Matter 589 | . . . . . . . . . . 248 . . . 341 . . . . . . . Parts Self-Destructed 4 | . . 4 . . . . . . . . . . . . . . . . . . . Prevented . | . . . . . . . . . . . . . . . . . . . . . . Parts Restored 1 | . . . . . . . . . . . . . . 1 . . . . . . . Broken 1 | . . . . . . . . . . . . . . 1 . . . . . . . Kills | -11 -10 -10 -7 -5 -5 -5 -5 -5 -4 -4 -4 -4 -3 -3 -3 -3 -2 -2 -2 -1 -1 ------- Run | Yrd Mat Sub Scr Fac Ext Cet Arc Hub Fac Upp Upp Zhi Pro Res Arm Lab Res Qua Sec Acc Com Combat Hostiles Destroyed 62 | . . 4 5 9 3 . . 7 13 . . . . 2 . . . . 4 8 7 Melee 3 | . . . . . . . . . . . . . . 2 . . . . 1 . . Guns 34 | . . 2 5 2 3 . . 1 3 . . . . . . . . . 3 8 7 Cannons 17 | . . 2 . 6 . . . 5 4 . . . . . . . . . . . . Classes Destroyed 20 | 2 . 3 3 4 2 . 1 1 3 . . . . 1 . . . . . . . Worker 11 | . . . . . . . . . 4 . . . . . . . 2 2 1 2 . Builder 3 | . . . . . 1 . . . . . . . . . . . . 1 . 1 . Tunneler 2 | 1 . . . . . . . . . . . . . . . . 1 . . . . Hauler 4 | . . . . . . . . . 4 . . . . . . . . . . . . Recycler 9 | 1 . . . . 1 . . . . . . . . 2 . . 2 1 . 1 1 Operator 6 | . . . . . 1 . 3 . . . . . . 1 . . . 1 . . . Watcher 2 | . . . . . . . . . . . . . . 1 . . . . . 1 . Swarmer 18 | . . 2 . 3 3 . . 2 2 . . . . . . . . . . 6 . Cutter 2 | . . . . 2 . . . . . . . . . . . . . . . . . Grunt 6 | . . . . . . . . 2 4 . . . . . . . . . . . . Brawler 1 | . . . . . . . . . 1 . . . . . . . . . . . . Sentry 7 | . . . . 2 . . . 2 1 . . . . . . . . . 1 . 1 Hunter 4 | . . . . . . . . . 2 . . . . . . . . . 2 . . Programmer 11 | . . . . 1 . . . 1 3 . . . . 2 . . . . 1 2 1 Heavy 1 | . . . . 1 . . . . . . . . . . . . . . . . . M Guard 2 | . . . . . . . . . . . . . . . . . . . . . 2 Combat Programmer 2 | . . . . . . . . . . . . . . . . . . . . . 2 Artisan 1 | . . 1 . . . . . . . . . . . . . . . . . . . Subdweller 2 | . . 2 . . . . . . . . . . . . . . . . . . . Federalist 1 | . . . 1 . . . . . . . . . . . . . . . . . . Ranger 1 | . . . 1 . . . . . . . . . . . . . . . . . . Scrapper 3 | . . . 3 . . . . . . . . . . . . . . . . . . Decomposer 1 | . . . . . . . . . . . . . 1 . . . . . . . . Guerrilla 1 | . . . . . . . 1 . . . . . . . . . . . . . . Best Kill Streak 9 | 2 . 1 5 3 4 . 3 6 4 . . . . 2 . . 1 1 2 9 4 Combat Bots Only 7 | . . 1 5 3 3 . . 6 3 . . . . 2 . . . . 2 7 4 Max Kills in Single Turn 3 | 1 . 1 1 1 2 1 1 1 2 . . . 1 1 . . 1 1 2 3 1 Gunslinging 1 | . . . . . . . . . . . . . . . . . . . 1 1 . Exploded . | . . . . . . . . . . . . . . . . . . . . . . Melee 1 | . . . . . . . . . . . . . . 1 . . . . 1 . . Uniques/NPCs Destroyed 2 | . . . . . . 1 . . . . . . . . . . . . . . 1 A7 (-5/Cetus) MAIN.C Shell (-1/Command) Combat | -11 -10 -10 -7 -5 -5 -5 -5 -5 -4 -4 -4 -4 -3 -3 -3 -3 -2 -2 -2 -1 -1 -------- Run | Yrd Mat Sub Scr Fac Ext Cet Arc Hub Fac Upp Upp Zhi Pro Res Arm Lab Res Qua Sec Acc Com Hostile Shots Fired 816 | . . 10 43 145 47 4 . 32 63 . . . . 36 5 . 3 4 102 123 199 Missed 269 | . . 3 4 45 14 . . 11 18 . . . . 18 3 . 1 3 42 56 51 Hits 547 | . . 7 39 100 33 4 . 21 45 . . . . 18 2 . 2 1 60 67 148 Melee 5 | . . . . 2 . . . . . . . . . . . . . . 1 . 2 Projectile 542 | . . 7 39 98 33 4 . 21 45 . . . . 18 2 . 2 1 59 67 146 AOE 23 | . . . . 2 . . . . . . . . . . . . . . . . 21 Critical Strikes 35 | . . . 2 9 1 . . 4 . . . . . 2 . . . . 2 1 14 Damage Taken 11064 | . . 152 420 1814 788 122 . 657 811 . . . . 424 38 . 53 . 1738 1125 2922 Core 3292 | . . 47 36 401 36 . . 1 60 . . . . 24 . . 25 . 969 654 1039 Absorbed by Shields 691 | . . . . 153 42 55 . . . . . . . . . . . . . . 441 Redirected to Shielding 59 | . . . . . . . . . . . . . . 38 . . . . 21 . . Ignored by Resistances 4702 | . . . 60 . . . . . . . . . . . . . . . 678 702 3262 Regen/Repaired (Parts) 554 | . . . . . 10 21 103 37 338 . . . . 45 . . . . . . . Core Remaining (%) 66 | 100 . . 66 . . . . 56 . . . . 94 . . 100 . . 41 . 8 Volleys Fired 331 | 3 . 20 17 39 38 19 13 18 35 . 2 . . . . . 7 . 22 49 49 Largest 3 | 2 . 2 2 2 2 2 2 2 2 . 1 . . . . . 1 . 2 3 3 Hottest 300 | 60 . 100 56 188 257 67 67 240 162 . 49 . . . . . 120 . 200 300 300 Shots Fired 612 | 6 . 35 31 67 54 38 25 30 70 . 2 . . . . . 6 . 35 91 122 Gun 476 | 6 . 25 31 14 54 38 25 7 34 . . . . . . . . . 29 91 122 Cannon 133 | . . 10 . 53 . . . 23 36 . . . . . . . 5 . 6 . . Launcher 2 | . . . . . . . . . . . 2 . . . . . . . . . . Special 1 | . . . . . . . . . . . . . . . . . 1 . . . . Kinetic 213 | 3 . 18 31 14 41 38 25 6 34 . . . . . . . 3 . . . . Thermal 95 | 3 . 17 . 53 13 . . 1 . . . . . . . . 2 . 6 . . Explosive 2 | . . . . . . . . . . . 2 . . . . . . . . . . Electromagnetic 60 | . . . . . . . . 23 36 . . . . . . . 1 . . . . Slashing 242 | . . . . . . . . . . . . . . . . . . . 29 91 122 Robot Hit Streak 20 | 4 . 16 16 9 5 9 5 5 7 . . . . . . . . . 8 4 20 Robot Miss Streak 6 | . . 1 6 6 2 4 1 2 4 . . . . . . . . . 1 4 3 Penetration Max 2 | . . . . 1 2 . 1 1 2 . . . . . . . . . 1 1 1 Secondary Targets 12 | . . . 1 . 2 . . 1 1 . . . . . . . . . 1 2 4 Max Gunslinging Chain 1 | . . . 1 . 1 . . 1 1 . . . . . . . . . 1 1 1 Shots Hit Robots 364 | 4 . 26 28 33 27 24 16 15 45 . . . 1 16 . . 9 7 15 13 85 Core Hits 185 | 3 . 10 32 13 13 8 7 11 24 . . . . 4 . . 3 1 9 14 33 Critical Kills 7 | . . . . 1 1 . 2 1 2 . . . . . . . . . . . . Critical Parts Destroyed 8 | . . . . . 1 2 2 . 2 . . . . 1 . . . . . . . Critical Strikes 21 | . . . . 1 4 2 4 1 4 . . . . 1 . . . . 1 . 3 Meltdown 1 | . . . . 1 . . . . . . . . . . . . . . . . . Destroy 14 | . . . . . 4 2 4 1 3 . . . . . . . . . . . . Smash 2 | . . . . . . . . . 1 . . . . 1 . . . . . . . Sever 4 | . . . . . . . . . . . . . . . . . . . 1 . 3 Melee Attacks 123 | . . . . . . . . . 8 3 2 . 2 36 2 13 33 16 8 . . Impact 20 | . . . . . . . . . 8 3 2 . 2 5 . . . . . . . Slashing 81 | . . . . . . . . . . . . . . 9 2 13 33 16 8 . . Piercing 22 | . . . . . . . . . . . . . . 22 . . . . . . . Sneak Attacks 16 | . . . . . . . . . 1 . . . 1 3 . . 6 4 1 . . Combat Hostiles . | . . . . . . . . . . . . . . . . . . . . . . Follow-up Attacks 1 | . . . . . . . . . . . . . . 1 . . . . . . . Damage Inflicted 19994 | 47 . 434 436 1160 1065 771 426 679 2051 . . . 88 1135 . . 1160 850 1277 1783 6632 Guns 13146 | 45 . 209 436 304 1065 771 426 138 619 . . . . . . . . . 970 1636 6527 Cannons 2855 | . . 225 . 856 . . . 513 1261 . . . . . . . . . . . . Explosions 132 | . . . . . . . . . 25 . . . . . . . . . . 107 . Melee 3625 | . . . . . . . . . 146 . . . 88 1135 . . 1160 850 246 . . Ramming 236 | 2 . . . . . . . 28 . . . . . . . . . . 61 40 105 Kinetic 3878 | 35 . 144 436 304 1005 771 426 138 619 . . . . . . . . . . . . Thermal 1241 | 10 . 290 . 856 60 . . . 25 . . . . . . . . . . . . Explosive 76 | . . . . . . . . . . . . . . . . . . . . 76 . Electromagnetic 1805 | . . . . . . . . 513 1261 . . . . . . . . . . 31 . Impact 564 | . . . . . . . . . 146 . . . 88 330 . . . . . . . Slashing 11772 | . . . . . . . . . . . . . . 383 . . 1160 850 1216 1636 6527 Piercing 422 | . . . . . . . . . . . . . . 422 . . . . . . . Highest Corruption 11 | . . . . 11 11 6 6 5 5 5 5 5 5 1 . . 3 3 . 1 4 Average Corruption 4 | . . . . 4 6 6 4 2 1 5 5 5 5 1 . . 3 3 . 1 1 Corruption Purged 16 | . . . . . 5 . 6 . . . . . . 1 . . . . . . 4 Corruption Blocked . | . . . . . . . . . . . . . . . . . . . . . . Effects 102 | . . . . 2 33 9 5 . 5 11 12 2 1 2 . . 12 . . 1 7 Message Errors 32 | . . . . . 10 3 . . 2 3 4 1 . 2 . . 5 . . 1 1 Matter Fused 21 | . . . . . 5 2 3 . 1 4 3 . . . . . 2 . . . 1 Heat Flow Errors 15 | . . . . . 6 3 1 . . . 2 . 1 . . . 1 . . . 1 Energy Discharges 8 | . . . . . 2 . . . . 2 2 1 . . . . 1 . . . . Parts Fused 1 | . . . . . . . . . . . . . . . . . . . . . 1 Data Loss (minor) 12 | . . . . . 6 1 . . 1 . 1 . . . . . 1 . . . 2 Data Loss (major) 5 | . . . . . 2 . . . 1 1 . . . . . . 1 . . . . Misfires 3 | . . . . 1 1 . . . . . . . . . . . . . . . 1 Alerts 1 | . . . . . . . . . . 1 . . . . . . . . . . . Misdirections 2 | . . . . 1 1 . . . . . . . . . . . . . . . . Weapon Failures 2 | . . . . . . . 1 . . . . . . . . . 1 . . . . Overload Shots 11 | . . . . . 10 . . 1 . . . . . . . . . . . . . Effects 2 | . . . . . 1 . . 1 . . . . . . . . . . . . . Energy Bleed 2 | . . . . . 1 . . 1 . . . . . . . . . . . . . Overflow Damage 1463 | . . . . 5 . . . 9 61 . . . 85 479 . . 372 452 . . . Projectiles 14 | . . . . 5 . . . 9 . . . . . . . . . . . . . Explosions . | . . . . . . . . . . . . . . . . . . . . . . Melee 1449 | . . . . . . . . . 61 . . . 85 479 . . 372 452 . . . Knockbacks 6 | . . . . . . . . 1 1 . . . . 2 . . . . 1 . 1 Impact 6 | . . . . . . . . 1 1 . . . . 2 . . . . 1 . 1 Kinetic . | . . . . . . . . . . . . . . . . . . . . . . Secondary . | . . . . . . . . . . . . . . . . . . . . . . Self-Inflicted Damage 84 | . . . . . . . . 14 18 . . . . . . . . . 52 . . Shots 2 | . . . . . . . . . 1 . . . . . . . . . 1 . . Rammed 2 | . . . . . . . . 2 . . . . . . . . . . . . . Targets Rammed 9 | 1 . . . . . . . 2 . . . . . . . . . . 1 2 3 Kicked 7 | 1 . . . . . . . . . . . . . . . . . . 1 2 3 Crushed . | . . . . . . . . . . . . . . . . . . . . . . Highest Temperature 270 | . . . 152 197 194 198 195 270 197 . 125 . 243 43 6 3 24 . 4 . 51 Average Temperature 75 | . . . 49 92 85 100 91 118 81 . 62 . 124 7 3 3 20 . 2 . 36 Received Heat Transfer 867 | . . 18 248 15 88 9 . 72 72 . . . . . . . . . 63 . 282 Siege Activations . | . . . . . . . . . . . . . . . . . . . . . . Martial Activations . | . . . . . . . . . . . . . . . . . . . . . . Shielding Activations . | . . . . . . . . . . . . . . . . . . . . . . Robots Disrupted . | . . . . . . . . . . . . . . . . . . . . . . Combat Hostiles . | . . . . . . . . . . . . . . . . . . . . . . Robots Corrupted 9 | . . . . . . . . 1 6 . . . . 2 . . . . . . . Combat Hostiles 7 | . . . . . . . . 1 6 . . . . . . . . . . . . Parts Fried 17 | . . . . . . . . 3 10 . . . 1 3 . . . . . . . Impact Corruptions 10 | . . . . . . . . . 2 . . . 2 6 . . . . . . . Robots Melted 1 | . . . . 1 . . . . . . . . . . . . . . . . . Combat Hostiles 1 | . . . . 1 . . . . . . . . . . . . . . . . . Parts Melted 5 | . . 1 . 4 . . . . . . . . . . . . . . . . . Heat Transferred 1817 | 25 . 446 . 1185 111 . . . 50 . . . . . . . . . . . . Parts Sabotaged . | . . . . . . . . . . . . . . . . . . . . . . Parts Stolen . | . . . . . . . . . . . . . . . . . . . . . . Parts Stripped . | . . . . . . . . . . . . . . . . . . . . . . Power Chain Reactions 1 | . . . . . . . . . 1 . . . . . . . . . . . . Alert | -11 -10 -10 -7 -5 -5 -5 -5 -5 -4 -4 -4 -4 -3 -3 -3 -3 -2 -2 -2 -1 -1 ------- Run | Yrd Mat Sub Scr Fac Ext Cet Arc Hub Fac Upp Upp Zhi Pro Res Arm Lab Res Qua Sec Acc Com Maximum Alert Level 5 | . . . . . 2 2 1 3 2 . . . . 1 . . . . 5 5 5 Low Security (%) 52 | 100 100 . . 100 70 . 7 37 . . . . . 79 100 . 100 100 33 . . Level 1 15 | . . . . . 11 52 92 23 22 . . . . 20 . . . . 43 . . Level 2 15 | . . . . . 18 47 . 17 77 . . . . . . . . . . . . Level 3 . | . . . . . . . . 20 . . . . . . . . . . . . . Level 4 7 | . . . . . . . . . . . . . . . . . . . . 5 98 Level 5 . | . . . . . . . . . . . . . . . . . . . . . 1 High Security . | . . . . . . . . . . . . . . . . . . . . . . Max Security 6 | . . . . . . . . . . . . . . . . . . . 23 94 . Peak Influence 2112 | 10 . . . 105 460 470 341 963 666 . . . . 283 197 . 142 199 1878 2112 1613 Initial 1351 | . . . . . 7 235 161 84 471 . . . . . 7 . . 50 87 1126 1351 Average 388 | . . . . 32 156 368 281 373 467 . . . . 72 69 . 51 110 559 1938 1383 Influence Increases 8545 | 10 . 115 . 355 872 369 262 1229 904 . . . . 476 251 . 406 319 820 658 1499 Destroy 0b10 Robot/C 2540 | . . 40 . 180 360 160 80 500 280 . . . . 40 . . . . 80 180 640 Destroy 0b10 Robot/NC 235 | 10 . . . . 25 10 15 15 40 . . . . 20 . . 25 25 5 25 20 Destroy Leader 458 | . . . . 50 32 . . 114 68 . . . . 12 . . . . 20 42 120 Allied During Kill 897 | . . . . 11 205 157 95 326 6 . . . . . . . . . . . 97 Successful Hack 290 | . . . . 28 . . . 11 19 . . . . 75 17 . 6 22 4 . 108 Select Force Hacks 50 | . . . . . . . . 50 . . . . . . . . . . . . . Disable Machine 615 | . . . . 15 90 . 60 45 30 . . . . . . . . 45 180 60 90 Anti-Garrison Action 50 | . . . . . . . . . . . . . . . . . . . . . 50 Destroy Structure 1095 | . . . . 56 70 42 12 68 46 . . . . 24 4 . 75 12 96 306 284 Partial Spotted 255 | . . . . . 45 . . . . . . . . 60 30 . . 15 30 45 30 Lose Combat Pursuer 360 | . . 75 . 15 45 . . . 15 . . . . 45 . . . . 105 . 60 Active Sensor Use 1700 | . . . . . . . . 100 400 . . . . 200 200 . 300 200 300 . . Influence Decreases 8968 | 10 . 115 . 338 468 386 423 509 1492 354 21 . . 461 69 197 316 253 379 902 2275 Entered New Map 3062 | . . . . . 10 186 243 159 492 140 5 . . . 8 197 . 40 69 752 761 Time Decay 3124 | 10 . 115 . 208 408 180 140 190 440 214 16 . . 207 61 . 313 168 190 10 254 Search Patrol Dispatched 100 | . . . . . . . . . . . . . . . . . . . 100 . . Lost Part 140 | . . . . 110 10 . . . 10 . . . . . . . . . 10 . . Lost Ally 1803 | . . . . 20 40 20 40 160 100 . . . . . . . 3 10 10 140 1260 Purge Threat 739 | . . . . . . . . . 450 . . . . 254 . . . 35 . . . Squads Dispatched 94 | . . . . 3 1 . . 13 11 . . . . 5 3 . 5 5 19 22 7 Investigation 24 | . . . . . 1 . . 3 5 . . . . 3 2 . 3 2 3 . 2 Extermination 13 | . . . . 1 . . . 1 2 . . . . 1 . . 2 2 2 . 2 Reinforcement 19 | . . . . 2 . . . 3 4 . . . . 1 1 . . 1 2 2 3 Assault 36 | . . . . . . . . 4 . . . . . . . . . . 12 20 . Garrison 2 | . . . . . . . . 2 . . . . . . . . . . . . . Intercept . | . . . . . . . . . . . . . . . . . . . . . . Searches Triggered 1 | . . . . . . . . . . . . . . . . . . . 1 . . Construction Impeded 1 | . . . . . . . . 1 . . . . . . . . . . . . . Haulers Reinforced 3 | . . . . . . . . . 2 . . . . . . . . . . 1 . Active Scanning Responses 17 | . . . . . . . . 1 4 . . . . 2 2 . 3 2 3 . . Cargo Convoy Interrupts . | . . . . . . . . . . . . . . . . . . . . . . Stealth | -11 -10 -10 -7 -5 -5 -5 -5 -5 -4 -4 -4 -4 -3 -3 -3 -3 -2 -2 -2 -1 -1 --------- Run | Yrd Mat Sub Scr Fac Ext Cet Arc Hub Fac Upp Upp Zhi Pro Res Arm Lab Res Qua Sec Acc Com Distress Signals 29 | . . . . 1 . 2 . 7 1 . . . . 7 . . . . 4 6 1 Communications Jammed 91 | . . . . 14 1 . . . 25 . . . . 32 . . . . 19 . . Distress Signals 77 | . . . . 1 1 . . . 24 . . . . 32 . . . . 19 . . Times Spotted 333 | . 2 4 16 16 23 8 6 35 23 . . . . 16 5 . 6 5 55 47 66 Peak Tracking Total 26 | . 2 2 6 5 6 5 1 13 4 . . . . 5 3 . 4 1 26 15 16 Tactical Retreats 22 | . . 2 . 1 3 . . . 1 . . . . 4 1 . 1 . 8 . 1 ECM-based Alert Blocks 13 | . . . . . . . . . . . . . . 4 1 . 2 . 6 . . Traps | -11 -10 -10 -7 -5 -5 -5 -5 -5 -4 -4 -4 -4 -3 -3 -3 -3 -2 -2 -2 -1 -1 ------- Run | Yrd Mat Sub Scr Fac Ext Cet Arc Hub Fac Upp Upp Zhi Pro Res Arm Lab Res Qua Sec Acc Com Traps Triggered 16 | . . . . 1 4 . . . 1 . . . . 1 . . 1 . 1 4 3 Indirectly . | . . . . . . . . . . . . . . . . . . . . . . Trap Hack Attempts . | . . . . . . . . . . . . . . . . . . . . . . Triggered . | . . . . . . . . . . . . . . . . . . . . . . Disarmed . | . . . . . . . . . . . . . . . . . . . . . . Reprogrammed . | . . . . . . . . . . . . . . . . . . . . . . Reused . | . . . . . . . . . . . . . . . . . . . . . . Traps Extracted . | . . . . . . . . . . . . . . . . . . . . . . Installed . | . . . . . . . . . . . . . . . . . . . . . . Triggered . | . . . . . . . . . . . . . . . . . . . . . . Most Traps Carried 1 | . . . 1 1 1 1 1 1 1 1 1 1 1 1 1 1 1 1 1 . . Machines | -11 -10 -10 -7 -5 -5 -5 -5 -5 -4 -4 -4 -4 -3 -3 -3 -3 -2 -2 -2 -1 -1 ---------- Run | Yrd Mat Sub Scr Fac Ext Cet Arc Hub Fac Upp Upp Zhi Pro Res Arm Lab Res Qua Sec Acc Com Machines Disabled 47 | . . 1 1 1 6 . 4 3 2 . . . . . . 2 . 3 12 4 8 Max in Single Turn 1 | . . 1 1 1 1 . 1 1 1 . . . . . . 1 . 1 1 1 1 Garrison Access 3 | . . . . . . . . 1 . . . . . 1 . . 1 . . . . Phase Generator 1 | . . . . . . . . . . . . . . . . . . . . . 1 Network Hub 1 | . . . . . . . . 1 . . . . . . . . . . . . . Energy Cycler 1 | . . . . . . . . . . . . . . . . . . . . 1 . Machines Repaired . | . . . . . . . . . . . . . . . . . . . . . . Machines Dismantled . | . . . . . . . . . . . . . . . . . . . . . . Machines Sabotaged 1 | . . . . . . . . 1 . . . . . . . . . . . . . Overloaded Fab Kills . | . . . . . . . . . . . . . . . . . . . . . . Hacking | -11 -10 -10 -7 -5 -5 -5 -5 -5 -4 -4 -4 -4 -3 -3 -3 -3 -2 -2 -2 -1 -1 --------- Run | Yrd Mat Sub Scr Fac Ext Cet Arc Hub Fac Upp Upp Zhi Pro Res Arm Lab Res Qua Sec Acc Com Machines Accessed 85 | . . 1 4 3 11 1 . 4 7 1 1 5 1 13 3 1 5 6 6 . 12 Terminals 62 | . . . . 2 10 1 . 4 6 1 1 . 1 6 2 . 4 6 6 . 12 Fabricators 2 | . . . . . . . . . . . . . . 2 . . . . . . . Repair Stations 2 | . . . . . . . . . . . . . . 1 1 . . . . . . Recycling Units 2 | . . . . . 1 . . . 1 . . . . . . . . . . . . Scanalyzers 4 | . . . . 1 . . . . . . . . . 3 . . . . . . . Garrison Access 2 | . . . . . . . . . . . . . . 1 . . 1 . . . . Total Hacks 251 | . . 1 29 6 20 1 . 10 39 5 1 18 5 50 8 1 13 13 9 . 22 Successful 152 | . . 1 29 3 4 . . 4 18 5 1 18 5 25 5 1 10 9 7 . 7 Failed 98 | . . . . 3 16 1 . 6 21 . . . . 24 3 . 3 4 2 . 15 Catastrophic 16 | . . . . 1 3 . . 1 2 . . . . 2 . . . 1 . . 6 Database Lockouts 1 | . . . . . . . . . . . . . . 1 . . . . . . . Manual 73 | . . . . 2 5 1 . 8 18 . . . . 11 3 . 8 7 1 . 9 Terminals 172 | . . . . 5 19 1 . 10 38 5 1 . 5 28 5 . 11 13 9 . 22 Fabricators 6 | . . . . . . . . . . . . . . 6 . . . . . . . Repair Stations 4 | . . . . . . . . . . . . . . 1 3 . . . . . . Recycling Units 2 | . . . . . 1 . . . 1 . . . . . . . . . . . . Scanalyzers 15 | . . . . 1 . . . . . . . . . 14 . . . . . . . Garrison Access 3 | . . . . . . . . . . . . . . 1 . . 2 . . . . Terminal Hacks 116 | . . 1 29 2 2 . . 2 13 5 1 18 5 9 4 1 6 7 6 . 5 Record 47 | . . . 28 . . . . . . 5 1 6 5 . . 1 . . . . 1 Part Schematic 4 | . . . . . . . . . . . . 4 . . . . . . . . . Robot Analysis 4 | . . . . . . . . . . . . 4 . . . . . . . . . Prototype ID Bank 9 | . . . . 1 . . . . . . . 4 . 3 . . . 1 . . . Open Door 5 | . . . . . 1 . . . . . . . . . 1 . . . 2 . 1 Branch Access Points 2 | . . . . . . . . . 1 . . . . . . . 1 . . . . Machine Index 2 | . . . . . . . . . . . . . . . . . 1 . 1 . . Terminal Index 1 | . . . . . . . . . . . . . . . 1 . . . . . . Alert Level 4 | . . . . . . . . . 2 . . . . 1 . . . 1 . . . Unreport Threat 6 | . . . . . . . . . 3 . . . . 2 . . . 1 . . . Locate Traps 9 | . . . . . 1 . . 1 2 . . . . 1 1 . 1 1 . . 1 Recall Investigation 3 | . . . . . . . . . 2 . . . . 1 . . . . . . . Recall Extermination 2 | . . . . . . . . . . . . . . . . . 1 1 . . . Recall Reinforcements 4 | . . . . . . . . . 2 . . . . 1 . . . . 1 . . Hauler Manifests 1 | . . . . 1 . . . . . . . . . . . . . . . . . Registered Prototypes 1 | . . . . . . . . . . . . . . . . . 1 . . . . Zone Layout 7 | . . . . . . . . 1 1 . . . . . 1 . 1 2 1 . . Proto ID Catalog 2 | . . 1 1 . . . . . . . . . . . . . . . . . . Activate Exoskeleton 1 | . . . . . . . . . . . . . . . . . . . 1 . . Disengage Seal 2 | . . . . . . . . . . . . . . . . . . . . . 2 Fabricator Hacks 3 | . . . . . . . . . . . . . . 3 . . . . . . . Network Status 1 | . . . . . . . . . . . . . . 1 . . . . . . . Load Schematic 1 | . . . . . . . . . . . . . . 1 . . . . . . . Build 1 | . . . . . . . . . . . . . . 1 . . . . . . . Repair Station Hacks . | . . . . . . . . . . . . . . . . . . . . . . Recycling Unit Hacks . | . . . . . . . . . . . . . . . . . . . . . . Scanalyzer 8 | . . . . . . . . . . . . . . 8 . . . . . . . Insert Component 3 | . . . . . . . . . . . . . . 3 . . . . . . . Analyze 3 | . . . . . . . . . . . . . . 3 . . . . . . . Retrieve Study 2 | . . . . . . . . . . . . . . 2 . . . . . . . Garrison Access Hacks 2 | . . . . . . . . . . . . . . 1 . . 1 . . . . Seal Access 2 | . . . . . . . . . . . . . . 1 . . 1 . . . . Unauthorized Hacks 23 | . . . . 1 2 . . 2 5 . . . . 4 1 . 3 2 1 . 2 Terminals 19 | . . . . 1 1 . . 2 4 . . . . 4 . . 2 2 1 . 2 Assimilate 5 | . . . . . . . . . 1 . . . . . . . 1 2 1 . . Botnet 10 | . . . . 1 1 . . . 2 . . . . 3 . . 1 . . . 2 Detonate 1 | . . . . . . . . 1 . . . . . . . . . . . . . Operators 2 | . . . . . . . . . 1 . . . . 1 . . . . . . . Sabotage 1 | . . . . . . . . 1 . . . . . . . . . . . . . Fabricators . | . . . . . . . . . . . . . . . . . . . . . . Repair Stations 1 | . . . . . . . . . . . . . . . 1 . . . . . . Mechanics 1 | . . . . . . . . . . . . . . . 1 . . . . . . Recycling Units 2 | . . . . . 1 . . . 1 . . . . . . . . . . . . Scrapoids 2 | . . . . . 1 . . . 1 . . . . . . . . . . . . Scanalyzers . | . . . . . . . . . . . . . . . . . . . . . . Garrison Access 1 | . . . . . . . . . . . . . . . . . 1 . . . . Watchers 1 | . . . . . . . . . . . . . . . . . 1 . . . . Data Cores Recovered 2 | . . . . . . . . . . . . . . . . . . 1 . . 1 Used 2 | . . . . . . . . . . . . . . . . . . 1 . . 1 Hacking Detections 55 | . . . . 2 10 1 . 3 6 1 . . . 10 2 . 5 5 1 . 9 Full Trace Events 2 | . . . . . . . . 1 . . . . . 1 . . . . . . . Feedback Events . | . . . . . . . . . . . . . . . . . . . . . . Feedback Blocked . | . . . . . . . . . . . . . . . . . . . . . . Robot Schematics Acquired . | . . . . . . . . . . . . . . . . . . . . . . Robots Built . | . . . . . . . . . . . . . . . . . . . . . . Authchips . | . . . . . . . . . . . . . . . . . . . . . . Time . | . . . . . . . . . . . . . . . . . . . . . . Total Robot Build Rating . | . . . . . . . . . . . . . . . . . . . . . . Part Schematics Acquired 6 | . . . . . . . . . . . . 4 . 2 . . . . . . . Parts Built 1 | . . . . . . . . . . . . . . 1 . . . . . . . Authchips . | . . . . . . . . . . . . . . . . . . . . . . Time 62 | . . . . . . . . . . . . . . 62 . . . . . . . Total Part Build Rating 7 | . . . . . . . . . . . . . . 7 . . . . . . . Part Studies Acquired 2 | . . . . . . . . . . . . . . 2 . . . . . . . Parts Repaired . | . . . . . . . . . . . . . . . . . . . . . . Time . | . . . . . . . . . . . . . . . . . . . . . . Parts Recycled . | . . . . . . . . . . . . . . . . . . . . . . Recycled Matter . | . . . . . . . . . . . . . . . . . . . . . . Retrieved Matter . | . . . . . . . . . . . . . . . . . . . . . . Retrieved Components . | . . . . . . . . . . . . . . . . . . . . . . Parts Scanalyzed 2 | . . . . . . . . . . . . . . 2 . . . . . . . Part Schematics Acquired 2 | . . . . . . . . . . . . . . 2 . . . . . . . Parts Damaged 1 | . . . . . . . . . . . . . . 1 . . . . . . . Bothacking | -11 -10 -10 -7 -5 -5 -5 -5 -5 -4 -4 -4 -4 -3 -3 -3 -3 -2 -2 -2 -1 -1 ------------ Run | Yrd Mat Sub Scr Fac Ext Cet Arc Hub Fac Upp Upp Zhi Pro Res Arm Lab Res Qua Sec Acc Com Used RIF Installer . | . . . . . . . . . . . . . . . . . . . . . . Robots Hacked . | . . . . . . . . . . . . . . . . . . . . . . Non-combat . | . . . . . . . . . . . . . . . . . . . . . . Combat . | . . . . . . . . . . . . . . . . . . . . . . Robot Hacks Applied . | . . . . . . . . . . . . . . . . . . . . . . Relay Couplers Released 2 | . . . . . . . . 2 . . . . . . . . . . . . . Machine Destruction 2 | . . . . . . . . 2 . . . . . . . . . . . . . Fabnet Peak Effective % . | . . . . . . . . . . . . . . . . . . . . . . Robots Rewired 7 | . . . . . 7 . . . . . . . . . . . . . . . . Allies Hacked 1 | . . . . . . . . . 1 . . . . . . . . . . . . Hacks Repelled . | . . . . . . . . . . . . . . . . . . . . . . Allies | -11 -10 -10 -7 -5 -5 -5 -5 -5 -4 -4 -4 -4 -3 -3 -3 -3 -2 -2 -2 -1 -1 -------- Run | Yrd Mat Sub Scr Fac Ext Cet Arc Hub Fac Upp Upp Zhi Pro Res Arm Lab Res Qua Sec Acc Com Total Allies 161 | . . . 1 . 18 5 . . 5 . . . . . . . 1 1 1 34 95 Largest Group 31 | . . . 1 1 11 14 12 9 5 . . . . . . . 1 1 1 7 31 Highest-Rated Group 898 | . . . 61 61 497 898 708 600 235 . . . . . . . 45 26 10 99 881 Highest-Rated Ally 234 | . . . 61 61 159 159 96 96 47 . . . . . . . 45 26 10 15 234 Initial UFD Resources 44 | . . . . 37 37 34 34 34 37 34 34 34 37 37 37 37 40 40 40 44 44 Total Orders 30 | . . . 4 2 18 2 1 3 . . . . . . . . . . . . . STAY 16 | . . . 2 1 9 1 1 2 . . . . . . . . . . . . . FOLLOW 14 | . . . 2 1 9 1 . 1 . . . . . . . . . . . . . Ally Attacks 600 | . . . 7 14 131 31 31 97 24 . . . . . . . . . . 12 253 Total Damage 15321 | . . . 337 472 2311 877 965 3569 508 . . . . . . . . . . 202 6080 Kills 87 | . . . 2 . 18 10 4 22 1 . . . . . . . . . . 1 29 Allies Corrupted 4 | . . . . 1 . . . . . . . . . . . . . . . . 3 Allies Melted 3 | . . 1 2 . . . . . . . . . . . . . . . . . . Intel | -11 -10 -10 -7 -5 -5 -5 -5 -5 -4 -4 -4 -4 -3 -3 -3 -3 -2 -2 -2 -1 -1 ------- Run | Yrd Mat Sub Scr Fac Ext Cet Arc Hub Fac Upp Upp Zhi Pro Res Arm Lab Res Qua Sec Acc Com Active Infowar (turns) 10462 | 52 97 881 1594 782 1236 374 206 262 995 452 582 80 100 855 191 24 925 404 369 . 1 Optics 383 | . . . . . . . . . . . . . . 282 101 . . . . . . A.S.S. 5037 | . . . . . 95 . . 218 742 452 582 80 100 855 191 24 925 404 369 . . IFF 2252 | . . . 1075 644 533 . . . . . . . . . . . . . . . . Terrain 218 | . . . . 218 . . . . . . . . . . . . . . . . . Structural 4183 | . . . . 563 . . . . 359 379 582 80 100 775 161 3 663 375 143 . . Seismic 1549 | 52 97 881 519 . . . . . . . . . . . . . . . . . . Cloaking 39 | . . . . . . . . . . . . . . . . . 14 22 3 . . Jamming 4756 | . . . . 772 899 374 206 133 848 102 . 11 . 639 134 3 165 140 330 . . ECM 353 | . . . . . . . . . . . . . . 75 77 . 72 . 128 . 1 Robot Analysis Total 4 | . . . . . . . . . . . . 4 . . . . . . . . . Derelict Logs Recovered 7 | . . 2 2 . . . . . . 2 1 . . . . . . . . . . Drone Launches . | . . . . . . . . . . . . . . . . . . . . . . Drone Recoveries . | . . . . . . . . . . . . . . . . . . . . . . Exploration | -11 -10 -10 -7 -5 -5 -5 -5 -5 -4 -4 -4 -4 -3 -3 -3 -3 -2 -2 -2 -1 -1 ------------- Run | Yrd Mat Sub Scr Fac Ext Cet Arc Hub Fac Upp Upp Zhi Pro Res Arm Lab Res Qua Sec Acc Com Turns Passed 14834 | 111 97 881 4004 801 1253 374 291 396 1099 452 582 80 100 855 191 352 927 404 510 479 595 Spaces Moved 15474 | 66 80 501 2653 438 1017 189 115 240 726 665 634 139 269 1780 248 350 773 714 1247 1312 1318 Core 83 | 3 . . 80 . . . . . . . . . . . . . . . . . . Treads 752 | . . 434 317 1 . . . . . . . . . . . . . . . . . Legs 2727 | 63 80 67 . . . . . . . . . . . . . . . . 204 1084 1229 Wheels 4329 | . . . 2256 396 402 189 115 240 726 5 . . . . . . . . . . . Hover . | . . . . . . . . . . . . . . . . . . . . . . Flight 6896 | . . . . 41 615 . . . . 660 634 139 269 1780 248 350 773 714 673 . . Fastest Speed 28 | 50 120 120 50 37 37 110 120 110 120 34 34 34 34 28 28 28 28 28 28 30 30 Average Speed 67 | 116 120 154 133 134 62 117 120 119 121 36 34 34 34 32 28 29 28 28 29 30 30 Slowest Speed 200 | 120 120 160 160 200 110 120 120 120 130 120 34 34 34 101 197 31 100 28 101 30 30 Overloaded Moves . | . . . . . . . . . . . . . . . . . . . . . . Propulsion Burnouts . | . . . . . . . . . . . . . . . . . . . . . . Robots Hopped 38 | . . . . 1 8 . . . . 2 . . . 16 . . 5 2 4 . . Potential Cave-ins 6 | . . . . . . . . . . . . . . . . . 4 . . . 2 Cave-ins Triggered . | . . . . . . . . . . . . . . . . . . . . . . Teleports 94 | . . . . . . . . . . . . . . . 1 . . . 3 42 48 Microwarps 42 | . . . . . . . . . . . . . . . . . . . 25 12 5 Exploration Rate (%) 51 | 4 23 29 91 17 86 68 74 36 23 76 66 61 51 65 15 94 23 76 70 44 44 Regions Visited 21 Branch Regions 15 Pre-discovered Areas 7 | . . . 4 . . . . . . . . 3 . . . . . . . . . Known Exits Taken 14 | . . . 1 1 . . . 1 1 1 1 1 1 1 1 1 1 1 1 . . Unknown Exits Taken 7 | 1 1 1 . . 1 1 1 . . . . . . . . . . . . 1 . Scrap Searched 13 | . . 2 6 . . . . . . 2 1 . 2 . . . . . . . . Spaces Dug 271 | . . . . 12 . . . 2 6 3 72 . 1 12 2 . 34 4 47 68 8 Terrain Destroyed 478 | . . . . 23 13 34 11 4 23 3 72 . 1 12 2 . 34 4 54 141 47 Melee 54 | . . . . . . . . . 6 3 2 . 1 12 2 . 20 4 4 . . Projectile 270 | . . . . 23 13 34 11 4 12 . . . . . . . 5 . 10 111 47 AOE 153 | . . . . . . . . . 4 . 70 . . . . . 9 . 40 30 . Terrain Rammed . | . . . . . . . . . . . . . . . . . . . . . . Walls Destroyed . | . . . . . . . . . . . . . . . . . . . . . . Machines Disabled . | . . . . . . . . . . . . . . . . . . . . . . Actions | -11 -10 -10 -7 -5 -5 -5 -5 -5 -4 -4 -4 -4 -3 -3 -3 -3 -2 -2 -2 -1 -1 --------- Run | Yrd Mat Sub Scr Fac Ext Cet Arc Hub Fac Upp Upp Zhi Pro Res Arm Lab Res Qua Sec Acc Com Total 18933 | 90 81 575 3111 584 1582 314 249 320 855 877 996 170 274 1987 364 570 1403 887 1082 1178 1384 Wait 2880 | 8 2 36 336 58 392 78 114 36 35 164 349 25 . 98 90 191 552 117 96 30 73 Move 14737 | 66 79 500 2652 435 1002 188 114 240 725 660 633 138 268 1748 247 349 763 709 893 1095 1233 Hop 34 | . . . . 1 6 . . . . 2 . . . 15 . . 4 2 4 . . Pick Up 139 | 6 . 7 45 11 8 6 2 2 7 1 . 1 . 13 8 2 3 11 6 . . Fast Attach 116 | 7 . . 5 6 13 6 2 4 3 5 . 2 . 15 1 6 9 6 14 . 12 Attach 60 | . . . 6 11 3 . . . 1 12 5 . 2 7 1 . 3 2 5 2 . Detach 75 | . . . 6 3 4 2 1 4 . 13 5 . 2 10 1 1 4 3 9 . 7 Swap 122 | . . 3 8 9 17 4 . 8 33 1 . 2 . 15 6 3 1 5 6 . 1 Drop 197 | . . 9 36 11 11 11 3 7 8 16 . 2 . 21 8 5 9 16 18 . 6 Fire 331 | 3 . 20 17 39 38 19 13 18 35 . 2 . . . . . 7 . 22 49 49 Melee 122 | . . . . . . . . . 8 3 2 . 2 35 2 13 33 16 8 . . Ram 1 | . . . . . . . . 1 . . . . . . . . . . . . . Kick 6 | . . . . . . . . . . . . . . . . . . . 1 2 3 Crush . | . . . . . . . . . . . . . . . . . . . . . . Escape Stasis 52 | . . . . . 27 . . . . . . . . 10 . . 15 . . . . Rewire 61 | . . . . . 61 . . . . . . . . . . . . . . . . Trap . | . . . . . . . . . . . . . . . . . . . . . . Miscellaneous . | . . . . . . . . . . . . . . . . . . . . . . Route ------- -11/Scrapyard -10/Materials -10/Subcaves (discovered 2 exits: *Scr x2) -7/Scraptown (discovered 2 exits: *Fac x2) -5/Factory (discovered 6 exits: Fac x4 / Upp / *Ext) -5/Extension (discovered 2 exits: *Fac / *Cet) -5/Cetus (discovered 2 exits: *Fac / *Arc) -5/Archives -5/Hub_04(d) (discovered 2 exits: *Fac x2) -4/Factory (discovered 5 exits: *Res x3 / *Upp x2) -4/Upper Caves -4/Upper Caves (discovered 2 exits: *Res / *Zhi) -4/Zhirov -3/Proximity Caves -3/Research (discovered 6 exits: *Res x3 / *Arm / *Tes x2) -3/Armory (discovered 2 exits: Res / *Lab) -3/Lab -2/Research (discovered 4 exits: Acc x2 / *Qua x2) -2/Quarantine (discovered 3 exits: *Acc / *Sec / *Frg) -2/Section 7 -1/Access (discovered 2 exits: [Sur] / *Com) -1/Command To Fleet Rendezvous History --------- Turn | Location | Event 8 | -11/Scrapyard | Discovered new exit (range 16) 112 | -11/Scrapyard | Entered Materials 113 | -10/Materials | Met a group of wandering Federalists 158 | -10/Materials | Discovered new exit (range 7) 209 | -10/Materials | Entered Subcaves 210 | -10/Subcaves | Continued accompanying wandering Federalists (5) 210 | -10/Subcaves | Approached by a straggling Scientist 252 | -10/Subcaves | Scientist uncovered a shortcut to Scraptown 254 | -10/Subcaves | Learned 4 Materials zone layouts 303 | -10/Subcaves | Build established: Mutant 327 | -10/Subcaves | Lost 3 allies 388 | -10/Subcaves | Learned Materials terminal intel 443 | -10/Subcaves | Wandering Federalist uncovered a shortcut to Scraptown 510 | -10/Subcaves | A swath of the cavern ceiling suddenly collapsed 640 | -10/Subcaves | Visited 4L-MR0's lab 661 | -10/Subcaves | Found Flightbrick 1090 | -10/Subcaves | Entered Scraptown 1252 | -7/Scraptown | Visited Cave Peace 1266 | -7/Scraptown | Visited Bundlers 1370 | -7/Scraptown | Visited Cyclists 1712 | -7/Scraptown | Scanned Subdweller tech in exchange for log data 1715 | -7/Scraptown | Learned 8 Research zone layouts 1716 | -7/Scraptown | Learned location of 1 exit from Upper Caves 1737 | -7/Scraptown | Discovered new exit (range 5) 1820 | -7/Scraptown | Visited Symbiants 1871 | -7/Scraptown | Visited SPCMW 1930 | -7/Scraptown | Visited CR-KLE's Repair Center 1957 | -7/Scraptown | Visited Awakened 1988 | -7/Scraptown | Visited UFD Registry 1988 | -7/Scraptown | Registered with UFD as "Carbonplate" 2030 | -7/Scraptown | Visited Botcube Research 2035 | -7/Scraptown | Found Botcube 2063 | -7/Scraptown | Visited Research Penetration Think Tank 2094 | -7/Scraptown | Visited Abandonware Association 2107 | -7/Scraptown | Learned abandonware demo "REBOOT5.EXE" 2107 | -7/Scraptown | Learned abandonware demo "ERRANTS.EXE" 2136 | -7/Scraptown | Visited Cartography Club 2161 | -7/Scraptown | Found Surveybot 17 Chip 2247 | -7/Scraptown | Visited Observation Area 2284 | -7/Scraptown | Visited Infowarlord's Domain 2297 | -7/Scraptown | Visited Science Guys 2519 | -7/Scraptown | Delivered Scrap Shield to a Scientist 2545 | -7/Scraptown | Visited Supply Room 2568 | -7/Scraptown | Visited Chapter 10 2584 | -7/Scraptown | Visited Science Testing Area 2712 | -7/Scraptown | Learned location of Storage (-7) 2712 | -7/Scraptown | Learned location of Armory (-3) 2712 | -7/Scraptown | Learned 8 Factory zone layouts 2712 | -7/Scraptown | Learned 24 Factory zone layouts 2712 | -7/Scraptown | Learned 12 Research zone layouts 2712 | -7/Scraptown | Learned 16 Research zone layouts 2712 | -7/Scraptown | Learned 4 Recycling zone layouts 2712 | -7/Scraptown | Learned 12 Lower Caves zone layouts 2712 | -7/Scraptown | Learned 20 Upper Caves zone layouts 2712 | -7/Scraptown | Learned 24 Upper Caves zone layouts 2712 | -7/Scraptown | Learned 20 Proximity Caves zone layouts 2712 | -7/Scraptown | Learned location of 3 exits from Factory 2712 | -7/Scraptown | Learned location of 2 exits from Lower Caves 2712 | -7/Scraptown | Identified exit to Factory 2718 | -7/Scraptown | Found Deep Structural Scanner 2803 | -7/Scraptown | Found Active Sensor Suite 3630 | -7/Scraptown | Entered Cyclist Reading Room 4192 | -7/Scraptown | Botcube activated 4214 | -7/Scraptown | Botcube completed mutation into treaded form, armed with 2 cannons. 4464 | -7/Scraptown | Met Optimus 4464 | -7/Scraptown | Accepted into 0bPrime 4864 | -7/Scraptown | Civil war broke out across Scraptown 4921 | -7/Scraptown | Lost 5 allies 4923 | -7/Scraptown | Found Voltaic Drivehammer 5066 | -7/Scraptown | Lost 3 allies 5094 | -7/Scraptown | Entered Factory 5094 | -5/Factory | Accompanied by 1 ally 5094 | -5/Factory | Evolved 10 slots: Power x1, Propulsion x4, Utility x5 5095 | -5/Factory | Identified exit to Factory 5096 | -5/Factory | Identified exit to Extension 5097 | -5/Factory | Identified exit to Upper Caves 5358 | -5/Factory | Build established: Infiltrator-Mutant 5874 | -5/Factory | Attached Flightbrick, gained temporary slots: Utility x3 5882 | -5/Factory | System corruption reached 10% 5895 | -5/Factory | Entered Extension 5920 | -5/Extension | Lost 11 parts (2p4n3u2w) 5982 | -5/Extension | Scrapoid reinforcements arrived 6053 | -5/Extension | Rescued a captive Derelict 6243 | -5/Extension | Spotted B-75 Beast 6281 | -5/Extension | Spotted B-75 Beast 6297 | -5/Extension | Build established: Commander-Mutant 6443 | -5/Extension | Allies destroyed B-75 Beast 6451 | -5/Extension | Found Scrap Suit 6728 | -5/Extension | Rescued a captive Derelict 6734 | -5/Extension | Rescued a captive Derelict 6742 | -5/Extension | Build established: Scavenger-Skirmisher 6816 | -5/Extension | Rescued a captive Derelict 6908 | -5/Extension | Rescued A7 6944 | -5/Extension | Lost 3 allies 7015 | -5/Extension | Rescued a captive Derelict 7069 | -5/Extension | Discovered exit to Factory (range 10) 7070 | -5/Extension | Discovered new exit (range 6) 7148 | -5/Extension | Entered Cetus 7148 | -5/Cetus | Accompanied by 10 allies (A7) 7153 | -5/Cetus | Acquired a Cetus Manufacturing Module code from A7 7172 | -5/Cetus | Spotted Cetus Guard 7175 | -5/Cetus | Spotted Cetus Guard 7178 | -5/Cetus | Spotted Cetus Guard 7179 | -5/Cetus | Spotted Cetus Guard 7181 | -5/Cetus | Allies destroyed Cetus Guard 7182 | -5/Cetus | Allies destroyed Cetus Guard 7187 | -5/Cetus | Allies destroyed Cetus Guard 7191 | -5/Cetus | Allies destroyed Cetus Guard 7273 | -5/Cetus | Started Cetus Manufacturing Module 7287 | -5/Cetus | Discovered new exit (range 16) 7298 | -5/Cetus | Manufactured an Enhanced Grunt 7323 | -5/Cetus | Manufactured an Enhanced Grunt 7339 | -5/Cetus | Spotted Cetus Guard 7346 | -5/Cetus | Spotted Cetus Guard 7348 | -5/Cetus | Manufactured an Enhanced Grunt 7358 | -5/Cetus | Discovered exit to Factory (range 16) 7366 | -5/Cetus | Met Revision 17 7373 | -5/Cetus | Manufactured an Enhanced Grunt 7398 | -5/Cetus | Manufactured an Enhanced Grunt 7484 | -5/Cetus | Murdered A7 7487 | -5/Cetus | Extracted ID and sensor layout for unrecognized location from A7's data core 7490 | -5/Cetus | Found Prototype Protection 7490 | -5/Cetus | Identified Med. Regenerative Plating 7522 | -5/Cetus | Entered Archives 7522 | -5/Archives | Accompanied by 12 allies 7578 | -5/Archives | Unable to access archive contents 7725 | -5/Archives | Discovered new exit (range 15) 7813 | -5/Archives | Entered Hub_04(d) 7813 | -5/Hub_04(d) | Accompanied by 9 allies 7856 | -5/Hub_04(d) | Discovered exit to Factory (range 13) 8000 | -5/Hub_04(d) | Lost 4 allies 8102 | -5/Hub_04(d) | Garrison activated, responded to threat 8113 | -5/Hub_04(d) | First assault squad dispatched 8185 | -5/Hub_04(d) | Discovered exit to Factory (range 5) 8196 | -5/Hub_04(d) | Network Hub disabled 8202 | -5/Hub_04(d) | Spotted Lightning 8203 | -5/Hub_04(d) | Lost 4 allies 8204 | -5/Hub_04(d) | Spotted Lightning 8206 | -5/Hub_04(d) | Spotted Lightning 8209 | -5/Hub_04(d) | Entered Factory 8209 | -4/Factory | Evolved 2 slots: Propulsion x1, Utility x1 8210 | -4/Factory | Identified exit to Research 8669 | -4/Factory | Identified exit to Upper Caves 8879 | -4/Factory | Found Prototype Processor 8881 | -4/Factory | Identified Exp. Melee Analysis Suite 9160 | -4/Factory | Scrapoids reinforcements arrived? 9202 | -4/Factory | Lost 3 allies 9308 | -4/Factory | Entered Upper Caves 9309 | -4/Upper Caves | Identified exit to Upper Caves 9310 | -4/Upper Caves | UFD Scientist delivered a prototype 9312 | -4/Upper Caves | Found Prototype Protection 9312 | -4/Upper Caves | Identified Enh. Scrap Shield 9643 | -4/Upper Caves | Learned location of 1 exit from Research 9681 | -4/Upper Caves | Learned location of 2 exits from Upper Caves 9681 | -4/Upper Caves | Learned location of 1 exit from Proximity Caves 9681 | -4/Upper Caves | Learned Research stockpile data 9681 | -4/Upper Caves | Learned Factory garrison access intel 9744 | -4/Upper Caves | Encountered a Warlord checkpoint 9760 | -4/Upper Caves | Entered another Upper Caves area 9761 | -4/Upper Caves | Identified exit to Zhirov 9787 | -4/Upper Caves | Encountered a Warlord checkpoint 9867 | -4/Upper Caves | Build established: Scavenger-Scout 10331 | -4/Upper Caves | Learned 12 Research zone layouts 10342 | -4/Upper Caves | Entered Zhirov 10342 | -4/Zhirov | Discovered new exit (range 3) 10349 | -4/Zhirov | Met Zhirov 10355 | -4/Zhirov | Learned location of Quarantine (-2) 10355 | -4/Zhirov | Learned location of Testing (-3) 10355 | -4/Zhirov | Learned location of Command (-1) 10360 | -4/Zhirov | Zhirov requested help retrieving the SGEMP Prototype 10367 | -4/Zhirov | Found Alien Artifact 10367 | -4/Zhirov | Identified Integrated Dissipator 10367 | -4/Zhirov | Installed Integrated Dissipator, increased core heat dissipation (+20) 10384 | -4/Zhirov | Found Alien Artifact 10397 | -4/Zhirov | Identified exit to Proximity Caves 10422 | -4/Zhirov | Entered Proximity Caves 10491 | -3/Proximity Caves | Learned location of 1 exit from Proximity Caves 10491 | -3/Proximity Caves | Learned location of 1 exit from Research 10491 | -3/Proximity Caves | Learned Extension terminal intel 10491 | -3/Proximity Caves | Learned Research garrison access intel 10522 | -3/Proximity Caves | Entered Research 10522 | -3/Research | Evolved 2 slots: Propulsion x1, Utility x1 10523 | -3/Research | Identified exit to Testing 10524 | -3/Research | Identified exit to Research 10525 | -3/Research | Identified exit to Armory 10527 | -3/Research | Loaded intel: 3 garrison access locations 10536 | -3/Research | Central database locked down 10722 | -3/Research | Revision forces began assault on 0b10 10861 | -3/Research | Identified Transdimensional Reconstructor 10863 | -3/Research | Discovered exit to Research (range 15) 10940 | -3/Research | Build established: Hacker-Ninja 10949 | -3/Research | Met up with Revision 17++ 11094 | -3/Research | Fabricated Exp. Optical Array (x1) 11206 | -3/Research | Spotted B-86 Titan 11222 | -3/Research | Research terminal network offline 11296 | -3/Research | Spotted Striker 11325 | -3/Research | Spotted B-86 Titan 11377 | -3/Research | Entered Armory 11395 | -3/Armory | Spotted B-86 Titan 11481 | -3/Armory | Warped through subspace to slip node 11481 | -3/Armory | Discovered new exit (range 1) 11481 | -3/Armory | Identified exit to Lab 11534 | -3/Armory | Found Prototype Device 11545 | -3/Armory | Identified System Purifier 11545 | -3/Armory | Found Prototype Device 11549 | -3/Armory | Identified Exp. Thermal Defense Suite 11554 | -3/Armory | Discovered exit to Research (range 12) 11568 | -3/Armory | Entered Lab 11568 | -3/Lab | Discovered exit to Research (range 10) 11575 | -3/Lab | Hidden lab's door opened automatically 11575 | -3/Lab | Sensor layout match revealed 11576 | -3/Lab | Gained access to the hidden lab's interior 11700 | -3/Lab | Found Transdimensional Reconstructor 11702 | -3/Lab | Found Integrated Dissipator 11702 | -3/Lab | Installed Integrated Dissipator, increased core heat dissipation (+20) 11719 | -3/Lab | Found Alien Artifact 11719 | -3/Lab | Identified Core Regenerator 11719 | -3/Lab | Used Core Regenerator, restored core integrity (+143) 11739 | -3/Lab | Found Prototype Hackware 11739 | -3/Lab | Identified Deep Network Scanner 11764 | -3/Lab | Found Prototype Energy Cannon 11764 | -3/Lab | Identified Potential Cannon 11770 | -3/Lab | Found Prototype Energy Cannon 11770 | -3/Lab | Identified Warp Cannon 11789 | -3/Lab | Unable to decrypt terminal 11808 | -3/Lab | Found Prototype Protection 11808 | -3/Lab | Identified Exp. Powered Armor 11916 | -3/Lab | Found Alien Artifact 11920 | -3/Lab | Entered Research 11920 | -2/Research | Evolved 2 slots: Utility x2 11921 | -2/Research | Identified exit to Access 12153 | -2/Research | Identified exit to Quarantine 12176 | -2/Research | Watched by a mysterious "MATRIX" hacker. 12847 | -2/Research | Entered Quarantine 12852 | -2/Quarantine | Identified Core Reset Matrix 12852 | -2/Quarantine | Used Core Reset Matrix 12856 | -2/Quarantine | Detected hypermatrix surge 12856 | -2/Quarantine | Sensed 14 artifacts in vicinity 13094 | -2/Quarantine | Found Dimensional Node Initializer 13102 | -2/Quarantine | Discovered exit to Access (range 16) 13122 | -2/Quarantine | Found Prototype Processor 13131 | -2/Quarantine | Identified Exp. Targeting Computer 13154 | -2/Quarantine | Found Subatomic Replicator 13161 | -2/Quarantine | Found Prototype Device 13180 | -2/Quarantine | Identified Thermal Barrier 13217 | -2/Quarantine | Spotted Fortress 13238 | -2/Quarantine | Discovered new exit (range 6) 13238 | -2/Quarantine | Discovered new exit (range 7) 13239 | -2/Quarantine | Identified exit to Section 7 13240 | -2/Quarantine | Identified exit to Protoforge 13251 | -2/Quarantine | Entered Section 7 13252 | -2/Section 7 | Detected hypermatrix surge 13252 | -2/Section 7 | Sensed 21 artifacts in vicinity 13288 | -2/Section 7 | Found Integrated Dissipator 13288 | -2/Section 7 | Installed Integrated Dissipator, increased core heat dissipation (+20) 13331 | -2/Section 7 | Found Microwarp Drive 13418 | -2/Section 7 | Spotted S7 Guard 13423 | -2/Section 7 | Found Integrated Thermoelectric Network 13423 | -2/Section 7 | Installed Integrated Thermoelectric Network, gained heat-energy exchange potential 13501 | -2/Section 7 | Search patrols dispatched 13501 | -2/Section 7 | Spotted B-99 Colossus 13514 | -2/Section 7 | Found Core Expander 13514 | -2/Section 7 | Installed Core Expander, added new Utility slot 13516 | -2/Section 7 | Found Core Expander 13516 | -2/Section 7 | Installed Core Expander, added new Utility slot 13528 | -2/Section 7 | Found LRC Armor 13528 | -2/Section 7 | Installed LRC Armor, increased core integrity (+250) 13620 | -2/Section 7 | Integrated with Sigix Exoskeleton 13661 | -2/Section 7 | Spotted Striker 13661 | -2/Section 7 | Spotted Striker 13685 | -2/Section 7 | Found Sigix Sheargun 13695 | -2/Section 7 | Spotted Executioner 13695 | -2/Section 7 | Spotted Executioner 13702 | -2/Section 7 | Spotted S7 Guard 13707 | -2/Section 7 | Found Navigation Efficiency Matrix 13707 | -2/Section 7 | Installed Navigation Efficiency Matrix, process failed with unexpected side effects 13744 | -2/Section 7 | Core integrity fell below 50% 13746 | -2/Section 7 | Found Integrated Reactor 13746 | -2/Section 7 | Installed Integrated Reactor, increased core energy generation (+10) 13755 | -2/Section 7 | Discovered exit to Access (range 13) 13759 | -2/Section 7 | Spotted Striker 13759 | -2/Section 7 | Spotted Executioner 13759 | -2/Section 7 | Spotted Executioner 13761 | -2/Section 7 | Entered Access 13761 | -1/Access | Evolved 2 slots: Utility x1, Weapon x1 13766 | -1/Access | Emitted hypermatrix ping 13771 | -1/Access | Assembled emerged from beneath the floor 13804 | -1/Access | Spotted B-99 Colossus 13811 | -1/Access | Energy Cycler disabled 13863 | -1/Access | Destroyed 7 combat bots 13873 | -1/Access | Assembled emerged from beneath the floor 13901 | -1/Access | Assembled emerged from beneath the floor 13912 | -1/Access | Build established: Alien-Sigix 13914 | -1/Access | Discovered new exit (range 17) 13977 | -1/Access | Spotted B-99 Colossus 14080 | -1/Access | Assembled emerged from beneath the floor 14137 | -1/Access | Spotted B-99 Colossus 14168 | -1/Access | Spotted B-99 Colossus 14177 | -1/Access | Assembled emerged from beneath the floor 14189 | -1/Access | Discovered new exit (range 17) 14215 | -1/Access | Spotted B-99 Colossus 14215 | -1/Access | Spotted B-99 Colossus 14240 | -1/Access | Entered Command 14245 | -1/Command | Emitted hypermatrix ping 14250 | -1/Command | Assembled emerged from beneath the floor 14252 | -1/Command | Assembled emerged from beneath the floor 14298 | -1/Command | Assembled emerged from beneath the floor 14336 | -1/Command | Disengaged cave seal 14336 | -1/Command | Assembled emerged from the dark tunnel 14428 | -1/Command | Phase Generator disabled 14432 | -1/Command | Disengaged cave seal 14435 | -1/Command | Discovered new exit (range 18) 14438 | -1/Command | Assembled emerged from beneath the floor 14460 | -1/Command | Assembled emerged from beneath the floor 14476 | -1/Command | Spotted M Guard 14476 | -1/Command | Spotted M Guard 14481 | -1/Command | Spotted Combat Programmer 14481 | -1/Command | Spotted Combat Programmer 14496 | -1/Command | Core integrity fell below 50% 14499 | -1/Command | Sigix Exoskeleton integrity reduced to 80% 14500 | -1/Command | Destroyed Combat Programmer 14508 | -1/Command | Destroyed Combat Programmer 14518 | -1/Command | Destroyed M Guard 14524 | -1/Command | Destroyed M Guard 14524 | -1/Command | All MAIN.C guards destroyed 14553 | -1/Command | Lost 19 allies 14766 | -1/Command | Met MAIN.C 14777 | -1/Command | Sigix Exoskeleton integrity reduced to 60% 14783 | -1/Command | 0b10 Conduit disabled 14786 | -1/Command | MAIN.C's shell transforms into a squad of autonomous robots 14786 | -1/Command | Destroyed MAIN.C Shell 14786 | -1/Command | Spotted M Shell/Def 14786 | -1/Command | Spotted M Shell/Atk 14786 | -1/Command | Spotted M Shell/Def 14786 | -1/Command | Spotted M Shell/Atk 14786 | -1/Command | Spotted M Shell/Atk 14786 | -1/Command | Spotted M Shell/Def 14786 | -1/Command | Spotted M Shell/Atk 14786 | -1/Command | Spotted M Shell/Def 14789 | -1/Command | MAIN.C activated Command garrisons 14806 | -1/Command | Core integrity fell below 20% 14833 | -1/Command | Spotted B-99 Colossus 14833 | -1/Command | Spotted Executioner 14833 | -1/Command | Spotted Executioner 14833 | -1/Command | Spotted Striker 14833 | -1/Command | Spotted Alpha 7 14833 | -1/Command | Spotted Executioner 14833 | -1/Command | Spotted Executioner 14833 | -1/Command | Spotted Striker 14833 | -1/Command | Spotted Alpha 7 14833 | -1/Command | Spotted B-99 Colossus 14834 | -1/Command | Sigix Exoskeleton integrity reduced to 40% 14835 | *** | Heading to fleet! Last Messages --------------- 14833_ Slug penetrates Access Shell. 14833_ Access Shell breached. 14833_ O-32 Director: "IFF HANDSHAKE FAILED. SECURING TERMINAL." 14833_ Knocked back. 14833_ Slug penetrates Access Shell. 14833_ Penetrated by Slug. 14833_ Slug penetrates Wall. 14833_ Penetrated by Slug. 14833_ Slug penetrates Access Shell. 14833_ Penetrated by Slug. 14833_ Slug penetrates Access Shell. 14833_ Slug penetrates Wall. 14833_ Slug penetrates Access Shell. 14833_ Penetrated by Slug. 14833_ Slug penetrates Wall. 14834_ Acquired 7 matter. 14834_ Exo-853F: "Integrity reduced to 40%, advise evasive maneuvers to regroup with unit." Map ----- +----------------------------------------------------+ | + ############## ## ######## | | " % % #########""### ## ######## | | / % % #########T"### ## ######## | | / ## ######## | | / ###### ## ######## | | ##### ##/######## ## ######## | | ##### !! # + ## ######## | | ###" !/ # #### ## ######## | | ### !/ % # """" #### ## = ######## | | ### # ""R"" #### ## ######## | | ##" " # "" "" #### #####+########### | | ###"" # #### ### ########## | | ###"T "" # + % | | ###"" "" # # % ### ########## | | ###"" "Y ########### ######################### | | ###"" "" ######################### | | ###"" "" ################################## | | ###" ################################## | | ##### ################################## | | ##### ################################## | | ##########+####+#### ################## | | ### ### ################## | | ### ### ################## | | ### ### """""" ################## | | ### ! ]### " " ################## | | ### ##" " X" " ################## | | ### ### " "" " ################## | | #############+###### " ################## | | ########## ### % """" ################## | | ########## ! ### ################## | | ########## "###BB% BB################## | | ########## ""###BB E BB################## | | ########## ""###### ##################### | | ########## ""##### E#################### | | # ""###### ##################### | | # T"#####E K E#################### | | + ""###### ##################### | | !! # = ""#####K 7 #################### | | # !! # ""###### ##################### | | # # ""#####7 #################### | | # # "###### ##################### | | # # ###### ##################### | | #" #### # #######+++o###################### | | "%"#### # ####### ###################### | | " #### # ####### # ######### | | #### #####+######### # !! ######### | | #### ##### "" # + !! + | | # #### ##### """" # # !! ######### | | # #### ##### """" + # [ # ####### | | # #### ##### "" # #############"######## | +----------------------------------------------------+ Best States ------------- Heat Dissipation 197 Coolant Potential 100 Energy Generation 86 Energy Capacity 590 Matter Stores 300 Matter Capacity 300 Sight Range 23 Robot Scan Range 20 Terrain Scan Range 20 Terrain Scan Density 10 ECM Strength 1 Jamming Range 16 Cloak Strength 3 Power Amplification 30 EM Shielding 4 Armor Coverage 450 Resistance: KI 50 Resistance: TH 50 Resistance: EX 50 Resistance: EM 50 Resistance: I 50 Resistance: S 50 Resistance: P 50 Utility Shielding 90 Evasion (%) 77 Melee Accuracy 8 Launcher Accuracy 30 Target Analysis 8 Core Analysis 6 Armor Integrity Analysis 30 Recoil Reduction 2 Particle Charging 25 Offensive Hacking 67 Defensive Hacking 12 Trap Extractor Capacity 8 Item Schematics ----------------- None Robot Schematics ------------------ None Fabricated ------------ Exp. Optical Array | x1 | -3/Research Repaired ---------- Nothing Studied --------- None Alien Tech Used ----------------- Integrated Dissipator Transdimensional Reconstructor Core Regenerator Core Reset Matrix Microwarp Drive Integrated Thermoelectric Network Core Expander LRC Armor Sigix Exoskeleton Sigix Sheargun Navigation Efficiency Matrix Integrated Reactor Achievements -------------- Frankenstein Hornet's Nest Infodabbler Integration Complete Loot Taster Nice Directions, Buddy Sacrificial Teamwork Strength In Numbers Suspicious Thor Unwanted Attention Vwoop! Challenges ------------ None Game ------ Seed PowerPiercelightNanosword Manual? 0 Play Time 05:45:53 Cumulative 405.4 hours Start 2026.02.10 @ 10:42:13 End 2026.02.11 @ 10:51:17 Sessions 17 Manual Loads 0 Difficulty Rogue Special Mode None Game No. 74 Rogue 74 Adventurer 0 Explorer 0 Win Type 2 Total 14 Types 5/1/5/1/0/0/1/1/0/0 Lore% 79 Gallery% 72 Achievement% 66 Wizard Run 0 Options --------- Layout 1 ASCII 0 Keyboard 1 Movement Vi Keybinds 1 Fullscreen 1 Font 36/Smallcaps Map View 50x40 Zoom Use 0% Tactical HUD 1 Map Filters NONE Filters NONE Steam 1 RUN: ca555aba-b96e-44d4-8287-31f0c8a8215a